bitfinex-derivatives/quotes_ETHF0:USTF0_20230402
["timestamp","ask_amount","ask_price","bid_price","bid_amount"]
[1680472523629,1.112,1785.3,1785.0,1.0]
[1680472524432,0.56094526,1785.6,1785.2,1.12]
[1680472524734,1.109,1785.7,1785.3,1.0]
[1680472524931,1.109,1785.7,1785.3,4.2078]
[1680472525728,1.67043017,1785.7,1785.3,4.2078]
[1680472526236,14.841,1785.9,1785.4,1.12]
[1680472526433,14.841,1785.9,1785.6,1.12]
[1680472526434,0.5545939,1785.9,1785.6,1.12]
[1680472526737,1.116,1786.1,1785.7,1.0]
[1680472526942,1.116,1786.1,1785.7,4.2078]
[1680472527536,3.2078,1786.2,1785.8,1.12]
[1680472527738,3.2078,1786.2,1785.9,1.0]
[1680472528328,3.2078,1786.2,1785.8,1.12]
[1680472529228,3.2078,1786.2,1785.9,1.0]
[1680472529829,3.2078,1786.2,1785.9,4.2078]
[1680472530029,3.2078,1786.2,1785.9,3.2078]
[1680472531134,1.123,1786.3,1785.9,3.2078]
[1680472531135,1.123,1786.3,1786.0,1.0]
[1680472531342,0.56466742,1786.4,1786.0,2.12]
[1680472531537,1.116,1786.5,1786.1,0.10191701]
[1680472531940,1.116,1786.5,1786.1,3.30971701]
[1680472532938,4.3238,1786.6,1786.1,4.42971701]
[1680472536442,1.116,1786.6,1786.3,3.2078]
[1680472537039,1.116,1786.6,1786.5,3.2078]
[1680472538142,1.116,1786.6,1786.3,3.2078]
[1680472538942,1.116,1786.6,1786.2,1.0]
[1680472538943,3.31813515,1786.9,1786.5,3.2078]
[1680472539147,1.68033396,1786.9,1786.5,3.2078]
[1680472539335,1.115,1786.9,1786.5,3.2078]
[1680472540448,1.66971595,1786.9,1786.5,3.2078]
[1680472541047,1.115,1786.9,1786.7,3.2078]
[1680472542044,1.111,1787.0,1786.7,3.2031227]
[1680472542842,1.111,1787.0,1786.8,1.0]
[1680472543535,1.111,1787.0,1786.7,3.2031227]
[1680472543741,1.111,1787.0,1786.9,0.20046975]
[1680472545141,1.111,1787.0,1786.7,3.2031227]
[1680472545543,1.111,1787.0,1786.8,1.0]
[1680472546250,4.63621919,1787.2,1786.8,2.12]
[1680472546446,0.55383616,1787.2,1786.9,3.2078]
[1680472546649,1.13,1787.3,1787.0,1.0]
[1680472546952,1.13,1787.3,1786.9,3.2078]
[1680472548850,1.67956739,1787.3,1786.9,3.2078]
[1680472552055,1.67956739,1787.3,1786.9,4.3198]
[1680472553352,1.67956739,1787.3,1787.0,1.0]
[1680472554150,1.67956739,1787.3,1786.9,4.3198]
[1680472555155,0.54956739,1787.3,1787.1,1.12]
[1680472555353,3.2078,1787.4,1787.1,1.12]
[1680472555553,3.2078,1787.4,1787.1,4.3278]
[1680472556651,1.80485716,1787.6,1787.3,4.3198]
[1680472556652,0.69385716,1787.6,1787.3,4.3198]
[1680472556857,0.69385716,1787.6,1787.2,7.708]
[1680472556858,0.69385716,1787.6,1787.5,4.3278]
[1680472557458,0.69385716,1787.6,1787.5,1.12]
[1680472557659,0.69385716,1787.6,1787.5,4.3278]
[1680472557862,0.69385716,1787.6,1787.5,1.118]
[1680472558360,0.69385716,1787.6,1787.5,4.3258]
[1680472558661,0.69385716,1787.6,1787.5,4.94011769]
[1680472562063,0.69385716,1787.6,1787.5,3.82211769]
[1680472567464,0.69385716,1787.6,1787.5,0.61431769]
[1680472570367,0.69385716,1787.6,1787.3,1.118]
[1680472570962,0.69385716,1787.6,1787.4,3.2078]
[1680472572067,1.80985716,1787.6,1787.4,3.2078]
[1680472573666,1.80985716,1787.6,1787.5,0.59987248]
[1680472579770,1.81185716,1787.6,1787.5,0.59987248]
[1680472579968,0.05998724,1787.4,1787.0,3.2078]
[1680472580167,1.118,1787.3,1787.0,3.2078]
[1680472581272,1.118,1787.3,1786.8,2.116]
[1680472581273,1.113,1787.1,1786.8,3.2078]
[1680472582277,1.118,1787.0,1786.8,3.2078]
[1680472582874,1.118,1787.0,1786.7,0.002]
[1680472583176,1.118,1786.8,1786.7,0.002]
[1680472585474,2.118,1786.8,1786.7,0.002]
[1680472586077,1.118,1786.8,1786.7,0.002]
[1680472589075,1.11,1786.8,1786.7,0.002]
[1680472590671,2.11,1786.8,1786.7,0.002]
[1680472594275,2.11,1786.8,1786.4,3.2078]
[1680472594276,1.11,1786.8,1786.4,3.2078]
[1680472594477,1.119,1786.7,1786.4,3.2078]
[1680472600985,1.66205047,1786.9,1786.5,1.0]
[1680472605188,4.86985047,1786.9,1786.5,1.0]
[1680472607389,4.86985047,1786.9,1786.4,4.3238]
[1680472607788,4.86985047,1786.9,1786.5,1.0]
[1680472608684,1.66205047,1786.9,1786.5,1.0]
[1680472608988,1.66205047,1786.9,1786.6,0.12682841]
[1680472609790,1.66205047,1786.9,1786.6,3.33462841]
[1680472612484,0.57961473,1787.1,1786.7,2.119]
[1680472612685,1.69861473,1787.2,1786.8,3.2078]
[1680472612892,4.89741473,1787.3,1787.0,1.0]
[1680472613688,4.3178,1787.3,1787.0,1.0]
[1680472613892,1.11,1787.3,1787.0,1.0]
[1680472614292,1.11,1787.3,1787.0,4.2078]
[1680472614589,1.20381917,1787.4,1787.1,1.119]
[1680472615593,0.62420444,1787.4,1787.2,1.0]
[1680472615889,0.62420444,1787.4,1787.1,1.119]
[1680472616094,0.05998724,1787.4,1787.1,1.119]
[1680472616283,0.05998724,1787.4,1787.2,3.2078]
[1680472618394,0.05998724,1787.4,1787.3,0.44932362]
[1680472618896,0.05998724,1787.4,1787.3,2.56832362]
[1680472619493,0.05998724,1787.4,1787.3,1.56832362]
[1680472622808,0.05998724,1787.4,1787.3,2.56832362]
[1680472623608,0.05998724,1787.4,1787.3,1.56832362]
[1680472624709,0.05998724,1787.4,1787.3,2.56832362]
[1680472624909,0.05998724,1787.4,1787.3,1.56832362]
[1680472625309,0.05998724,1787.4,1787.3,2.56832362]
[1680472637716,0.05998724,1787.4,1787.3,1.56832362]
[1680472638319,0.05998724,1787.4,1787.3,2.56832362]
[1680472638522,0.05998724,1787.4,1787.3,1.56832362]
[1680472638720,0.05998724,1787.4,1787.3,2.56832362]
[1680472640726,0.05998724,1787.4,1787.3,1.56832362]
[1680472641025,0.05998724,1787.4,1787.3,2.56832362]
[1680472643530,0.05998724,1787.4,1787.3,1.56832362]
[1680472643731,0.05998724,1787.4,1787.3,2.56832362]
[1680472644027,0.05998724,1787.4,1787.3,1.56832362]
[1680472644619,0.05998724,1787.4,1787.3,2.56832362]
[1680472645132,0.05998724,1787.4,1787.3,1.56832362]
[1680472645433,0.05998724,1787.4,1787.3,2.56832362]
[1680472645637,0.05998724,1787.4,1787.3,1.56832362]
[1680472646637,0.05998724,1787.4,1787.3,2.56832362]
[1680472647224,0.05998724,1787.4,1787.3,1.28832362]
[1680472651937,0.05998724,1787.4,1787.3,0.44932362]
[1680472652135,0.05998724,1787.4,1787.1,1.42220642]
[1680472652638,0.05998724,1787.4,1787.2,0.44493506]
[1680472653027,0.05998724,1787.4,1787.1,2.42220642]
[1680472653228,0.05998724,1787.4,1787.1,1.42220642]
[1680472653424,0.05998724,1787.4,1787.1,0.836]
[1680472653637,0.839,1787.3,1787.0,3.79400642]
[1680472653934,1.41861473,1787.3,1786.9,0.839]
[1680472654432,4.62641473,1787.3,1786.9,0.839]
[1680472655337,5.50099776,1787.3,1786.9,0.839]
[1680472655728,0.57961473,1787.2,1786.9,0.839]
[1680472657336,0.57961473,1787.2,1786.9,0.83697903]
[1680472657838,0.57961473,1787.1,1786.9,1.42318545]
[1680472659840,0.57961473,1787.1,1786.9,0.58620642]
[1680472659841,1.41261473,1787.1,1786.9,0.58620642]
[1680472664444,0.833,1787.1,1786.9,0.58620642]
[1680472665443,1.41261473,1787.1,1786.8,4.67331604]
[1680472665635,1.41261473,1787.1,1786.9,0.58620642]
[1680472666038,0.833,1787.1,1786.8,4.67331604]
[1680472666544,0.833,1787.1,1786.8,3.79400642]
[1680472667245,1.41861473,1787.2,1786.9,0.836]
[1680472667542,1.41861473,1787.2,1787.0,1.0]
[1680472668039,1.41861473,1787.2,1786.9,1.836]
[1680472669543,1.41861473,1787.2,1787.0,1.0]
[1680472670543,1.45419776,1787.3,1787.2,0.839]
[1680472670742,0.63960197,1787.4,1787.2,2.678]
[1680472670947,0.63960197,1787.4,1787.3,1.834]
[1680472671640,0.05998724,1787.4,1787.3,1.834]
[1680472671848,0.05998724,1787.4,1787.3,2.42020642]
[1680472672038,0.05998724,1787.4,1787.3,1.58620642]
[1680472672236,0.05998724,1787.4,1787.3,1.70120642]
[1680472672448,2.43873499,1787.3,1787.1,0.87773975]
[1680472672643,2.81528658,1787.2,1786.7,4.08553975]
[1680472672844,1.118,1787.0,1786.8,1.0]
[1680472673150,1.45571645,1787.2,1786.9,8.2078]
[1680472673446,1.45643726,1788.1,1787.4,5.588]
[1680472673647,0.58254662,1788.1,1788.0,1.112]
[1680472674154,0.58254662,1788.2,1788.0,1.112]
[1680472674638,1.45643726,1788.3,1788.0,4.3198]
[1680472675147,0.58254662,1788.2,1788.0,4.3198]
[1680472676344,1.58254662,1788.3,1788.0,1.112]
[1680472676551,1.118,1788.1,1787.6,1.98549932]
[1680472676850,1.118,1788.1,1787.5,3.2078]
[1680472676851,1.118,1787.9,1787.5,3.2078]
[1680472677048,1.114,1787.7,1787.3,0.87749932]
[1680472677249,1.114,1787.7,1787.2,5.20029932]
[1680472677945,1.114,1787.7,1787.2,1.99249932]
[1680472678145,1.0,1787.6,1787.2,1.115]
[1680472678851,4.2078,1787.6,1787.2,1.115]
[1680472679344,3.2078,1787.6,1787.2,1.115]
[1680472680246,3.2078,1787.6,1787.3,0.34458052]
[1680472682052,4.3268,1787.6,1787.3,0.34458052]
[1680472682253,4.3268,1787.6,1787.1,1.99649932]
[1680472683450,4.3268,1787.6,1787.1,1.119]
[1680472684951,4.3268,1787.6,1787.1,1.99649932]
[1680472686553,4.3268,1787.6,1787.2,3.2078]
[1680472688159,1.119,1787.6,1787.2,3.2078]
[1680472693566,1.119,1787.6,1787.3,1.0764791]
[1680472693763,1.119,1787.6,1787.3,0.0764791]
[1680472694266,1.119,1787.6,1787.3,1.0764791]
[1680472694665,1.119,1787.6,1787.3,0.0764791]
[1680472695568,1.119,1787.7,1787.3,1.1904791]
[1680472699267,1.119,1787.7,1787.3,2.1904791]
[1680472699567,1.69954662,1787.9,1787.5,1.0]
[1680472700168,1.69954662,1787.9,1787.4,5.3268]
[1680472700369,1.69954662,1787.9,1787.5,1.0]
[1680472700670,1.69954662,1787.9,1787.4,5.3268]
[1680472700671,0.58254662,1788.1,1787.8,1.119]
[1680472700969,0.58254662,1788.3,1788.0,1.109]
[1680472701559,0.58254662,1788.3,1788.0,4.3168]
[1680472703369,4.08169064,1788.4,1788.0,4.3168]
[1680472703370,4.66423726,1788.4,1788.0,4.3168]
[1680472704569,0.58254662,1788.3,1788.0,4.3168]
[1680472704966,4.66423726,1788.4,1788.0,4.3168]
[1680472705166,3.79034662,1788.4,1788.0,4.3168]
[1680472707264,3.2078,1788.4,1788.0,4.3168]
[1680472707469,3.2078,1788.4,1788.1,1.108]
[1680472708367,3.79034662,1788.4,1788.1,1.108]
[1680472708562,3.79034662,1788.4,1788.2,0.47281657]
[1680472708767,3.79034662,1788.4,1788.1,1.108]
[1680472711376,3.79034662,1788.4,1788.0,3.2078]
[1680472711576,3.79034662,1788.4,1788.1,1.109]
[1680472711975,3.79034662,1788.4,1788.2,0.42785335]
[1680472712176,3.79034662,1788.4,1788.0,4.3258]
[1680472714280,4.66423726,1788.4,1788.0,4.3258]
[1680472714875,3.79034662,1788.4,1788.0,4.3258]
[1680472716281,0.58254662,1788.3,1788.0,4.3258]
[1680472717384,3.79034662,1788.4,1788.0,4.3258]
[1680472718881,4.90634662,1788.4,1788.0,3.2078]
[1680472719082,0.58254662,1788.3,1788.0,3.2078]
[1680472720688,0.58254662,1788.3,1788.1,1.111]
[1680472723490,0.58254662,1788.3,1788.2,0.5785705]
[1680472723789,0.58254662,1788.3,1788.1,1.111]
[1680472735093,1.45643726,1788.3,1788.1,1.111]
[1680472735596,2.02064653,1788.3,1788.1,1.111]
[1680472736193,1.14675589,1788.3,1788.1,1.111]
[1680472736593,0.58254662,1788.3,1788.1,1.111]
[1680472737294,0.58254662,1788.2,1788.1,1.111]
[1680472738600,0.58254662,1788.2,1788.1,1.61128052]
[1680472740591,0.58254662,1788.2,1788.1,0.50028052]
[1680472740904,1.45643726,1788.2,1788.1,0.50028052]
[1680472741100,4.66423726,1788.2,1787.8,1.99549932]
[1680472741302,0.58329713,1788.1,1787.8,1.99549932]
[1680472741602,0.58329713,1788.1,1787.9,0.50018029]
[1680472742102,0.58329713,1788.1,1787.8,1.99549932]
[1680472743102,0.58329713,1788.0,1787.9,0.87749932]
[1680472743406,0.57777565,1788.0,1787.9,0.87749932]
[1680472743797,1.57777565,1788.0,1787.8,0.87749932]
[1680472744001,1.0,1787.9,1787.8,0.87749932]
[1680472744201,1.87389064,1787.9,1787.8,0.87749932]
[1680472744504,1.87389064,1787.9,1787.6,1.99549932]
[1680472744693,1.87389064,1787.9,1787.6,0.87749932]
[1680472744895,0.87389064,1787.7,1787.4,1.98849932]
[1680472745100,0.87517925,1787.6,1787.4,1.111]
[1680472745301,1.16457317,1787.6,1787.5,0.87749932]
[1680472745499,4.08291879,1787.8,1787.5,0.87749932]
[1680472745908,0.87511879,1787.7,1787.5,0.87749932]
[1680472746108,2.109,1787.7,1787.5,0.87749932]
[1680472746404,1.109,1787.7,1787.5,0.87749932]
[1680472748009,1.98411879,1787.7,1787.5,0.87749932]
[1680472748801,1.109,1787.7,1787.4,0.87749932]
[1680472750900,2.109,1787.7,1787.4,0.87749932]
[1680472751107,1.98411879,1787.7,1787.3,0.87749932]
[1680472751307,3.2078,1787.6,1787.3,0.87749932]
[1680472752111,2.118,1787.5,1787.2,0.87749932]
[1680472752507,1.118,1787.5,1787.2,0.87749932]
[1680472752709,1.118,1787.5,1787.1,2.27963984]
[1680472752710,1.118,1787.5,1787.1,2.98949932]
[1680472753009,1.118,1787.5,1787.1,1.98949932]
[1680472753607,1.118,1787.5,1787.2,0.0618803]
[1680472754017,1.118,1787.5,1787.1,2.98949932]
[1680472754512,1.118,1787.5,1787.1,1.98949932]
[1680472756507,1.118,1787.5,1787.1,1.112]
[1680472759418,2.118,1787.5,1787.1,1.112]
[1680472759623,1.118,1787.5,1787.1,1.112]
[1680472759917,2.118,1787.5,1787.1,1.112]
[1680472760513,1.118,1787.5,1787.1,1.112]
[1680472760812,1.118,1787.4,1787.0,3.2078]
[1680472765016,1.66516596,1787.4,1787.0,3.2078]
[1680472765217,1.118,1787.2,1787.0,3.2078]
[1680472767327,1.118,1787.2,1786.9,0.87749932]
[1680472767923,1.118,1787.2,1786.8,5.20029932]
[1680472768119,1.118,1787.2,1786.8,5.75507379]
[1680472768519,0.09633737,1787.1,1786.8,5.75507379]
[1680472769131,1.118,1787.2,1786.8,5.75507379]
[1680472769628,0.09637131,1787.1,1786.8,5.75507379]
[1680472770130,1.118,1787.2,1786.8,5.75507379]
[1680472770327,0.09639877,1787.0,1786.8,5.75507379]
[1680472770532,1.118,1787.2,1786.8,5.75507379]
[1680472770830,0.09641617,1787.1,1786.8,5.75507379]
[1680472771032,1.118,1787.2,1786.8,5.75507379]
[1680472771227,0.09643199,1787.1,1786.8,5.75507379]
[1680472771533,1.118,1787.2,1786.8,5.75507379]
[1680472771726,0.09644927,1787.1,1786.8,5.75507379]
[1680472772037,1.118,1787.2,1786.8,5.75507379]
[1680472772226,0.09646672,1787.1,1786.8,5.75507379]
[1680472772536,1.118,1787.2,1786.8,5.75507379]
[1680472772837,0.0964854,1787.1,1786.8,5.75507379]
[1680472773029,1.118,1787.2,1786.8,5.75507379]
[1680472773227,1.119,1787.2,1786.8,4.64007379]
[1680472773431,0.09650261,1787.1,1786.8,4.64007379]
[1680472774228,1.119,1787.2,1786.8,4.64007379]
[1680472774731,0.09654481,1787.1,1786.8,4.64007379]
[1680472775133,1.119,1787.2,1786.8,4.64007379]
[1680472775431,0.09657208,1787.0,1786.8,4.64007379]
[1680472775635,1.119,1787.2,1786.8,4.64007379]
[1680472776138,0.09659833,1787.1,1786.8,4.64007379]
[1680472777035,4.3268,1787.2,1786.9,0.87749932]
[1680472777239,0.09664017,1787.1,1786.9,0.87749932]
[1680472777638,1.119,1787.2,1786.9,0.87749932]
[1680472777839,0.09665892,1787.0,1786.9,0.87749932]
[1680472778039,1.119,1787.2,1786.9,0.87749932]
[1680472781036,1.119,1787.2,1787.0,0.87749932]
[1680472781739,1.119,1787.2,1786.9,1.87749932]
[1680472781934,1.119,1787.2,1786.9,0.87749932]
[1680472782136,0.835,1787.3,1787.0,0.87749932]
[1680472783641,0.09685805,1787.2,1787.0,0.87749932]
[1680472785339,0.09685805,1787.2,1787.1,0.87749932]
[1680472785742,0.93585805,1787.2,1787.1,0.87749932]
[1680472788042,4.14365805,1787.2,1787.1,0.87749932]
[1680472790144,4.14365805,1787.2,1787.0,1.16763984]
[1680472794148,4.14365805,1787.2,1787.1,0.87986043]
[1680472794748,4.14365805,1787.2,1787.1,1.16763984]
[1680472800657,4.14365805,1787.2,1787.0,0.58693602]
[1680472800658,7.13225382,1787.2,1787.0,0.58693602]
[1680472800953,16.10053889,1787.1,1786.9,1.46723475]
[1680472801144,16.10053889,1787.1,1786.9,0.58693602]
[1680472801145,6.21434109,1787.0,1786.9,0.58693602]
[1680472801340,5.21434109,1787.0,1786.9,0.58693602]
[1680472801554,18.64142644,1787.0,1786.9,0.58693602]
[1680472801751,5.21434109,1787.0,1786.9,0.58693602]
[1680472802452,5.50251646,1787.0,1786.8,0.58693602]
[1680472802658,2.00617712,1786.9,1786.8,0.58693602]
[1680472803146,2.00617712,1786.9,1786.8,0.88029873]
[1680472803147,1.71441282,1786.9,1786.8,0.88029873]
[1680472805059,0.839,1786.9,1786.8,0.58645002]
[1680472805653,1.70741282,1786.9,1786.8,0.58645002]
[1680472806260,1.70741282,1786.9,1786.8,0.88029873]
[1680472806261,0.832,1786.9,1786.8,0.88029873]
[1680472806451,1.41895359,1786.9,1786.8,0.88029873]
[1680472806761,1.41895359,1786.9,1786.8,0.58642942]
[1680472807153,2.41895359,1786.9,1786.8,1.46672815]
[1680472807358,2.41895359,1786.9,1786.8,0.58642942]
[1680472807653,1.41895359,1786.9,1786.8,0.58642942]
[1680472808951,2.41895359,1786.9,1786.8,0.58642942]
[1680472809151,1.41895359,1786.9,1786.8,0.58642942]
[1680472809352,1.99023781,1786.9,1786.8,0.58642942]
[1680472810356,1.99023781,1786.9,1786.8,1.58642942]
[1680472810357,1.15823781,1786.9,1786.8,1.58642942]
[1680472810562,0.87541282,1787.2,1786.9,1.158]
[1680472810758,0.87541282,1787.3,1787.1,0.839]
[1680472811261,0.87541282,1787.3,1787.2,1.0]
[1680472811460,0.87541282,1787.4,1787.2,2.673]
[1680472811661,0.87541282,1787.4,1787.3,0.833]
[1680472811858,0.87541282,1787.5,1787.3,0.833]
[1680472812053,0.87541282,1787.5,1787.4,1.114]
[1680472812556,0.87541282,1787.5,1787.3,3.79368223]
[1680472812758,0.87541282,1787.6,1787.4,2.118]
[1680472812954,0.87541282,1787.6,1787.5,1.0]
[1680472813463,0.87541282,1787.7,1787.5,1.0]
[1680472813660,0.87541282,1787.7,1787.4,1.86702443]
[1680472814062,0.87541282,1787.7,1787.4,2.86702443]
[1680472814268,0.87541282,1787.7,1787.4,1.86702443]
[1680472814463,0.87541282,1787.7,1787.5,3.2078]
[1680472815371,0.87541282,1787.7,1787.6,1.114]
[1680472815669,0.87541282,1787.7,1787.6,2.114]
[1680472816358,0.87541282,1787.8,1787.6,2.114]
[1680472817060,0.87541282,1787.8,1787.7,2.109]
[1680472817260,0.87541282,1787.8,1787.7,5.3168]
[1680472817868,1.43295875,1787.9,1787.8,1.0]
[1680472818067,0.87541282,1787.9,1787.8,1.0]
[1680472818369,0.87541282,1787.9,1787.7,2.37790612]
[1680472818569,1.0,1787.8,1787.7,0.26890612]
[1680472818865,0.87541282,1787.8,1787.4,1.70388223]
[1680472819070,0.87541282,1787.8,1787.7,0.20765387]
[1680472819271,0.87541282,1787.8,1787.6,1.114]
[1680472819568,4.08321282,1787.9,1787.6,1.109]
[1680472824765,1.118,1787.8,1787.5,3.2078]
[1680472824973,1.0,1787.7,1787.5,3.2078]
[1680472825269,2.118,1787.8,1787.5,3.2078]
[1680472825776,1.118,1787.7,1787.4,3.79368223]
[1680472826067,1.118,1787.7,1787.3,0.58588223]
[1680472826867,1.0,1787.6,1787.3,0.58588223]
[1680472827068,1.22589946,1787.5,1787.3,0.58588223]
[1680472827260,2.118,1787.4,1787.3,0.58588223]
[1680472827463,2.118,1787.4,1787.2,0.58588223]
[1680472827464,1.118,1787.4,1787.2,0.58588223]
[1680472827870,4.3258,1787.5,1787.2,0.58588223]
[1680472828973,4.8797861,1787.5,1787.2,0.58588223]
[1680472829266,4.8797861,1787.5,1787.0,0.58588223]
[1680472829267,5.4378,1787.3,1787.0,0.58588223]
[1680472829472,1.29337051,1787.4,1786.9,0.58588223]
[1680472829473,4.3258,1787.1,1786.9,0.58588223]
[1680472829669,2.118,1787.0,1786.7,0.58588223]
[1680472829975,1.118,1786.9,1786.7,0.58588223]
[1680472832171,1.118,1786.8,1786.7,0.58588223]
[1680472833473,1.118,1786.8,1786.6,4.67250557]
[1680472833877,1.118,1786.8,1786.7,0.58588223]
[1680472834274,1.118,1786.8,1786.6,4.67250557]
[1680472834575,1.118,1786.8,1786.6,0.58588223]
[1680472835375,0.35794699,1786.7,1786.6,0.58588223]
[1680472838679,0.35794699,1786.7,1786.5,1.46470557]
[1680472839278,1.118,1786.6,1786.4,1.43720293]
[1680472839480,1.118,1786.6,1785.9,0.87882334]
[1680472839481,10.4438,1786.5,1785.9,0.87882334]
[1680472839778,1.118,1786.0,1785.8,4.08662334]
[1680472839985,1.118,1786.0,1785.7,0.87882334]
[1680472840279,4.3258,1786.0,1785.6,5.08662334]
[1680472840579,1.118,1786.2,1785.8,1.0]
[1680472840783,3.2078,1786.1,1785.7,1.99282334]
[1680472841175,3.2078,1786.1,1785.7,0.87882334]
[1680472841380,1.118,1785.8,1785.4,6.25426318]
[1680472841582,1.118,1785.8,1785.4,5.08662334]
[1680472841884,0.84037431,1785.7,1785.4,5.08662334]
[1680472842086,0.84037431,1785.7,1785.4,6.20462334]
[1680472842981,0.84037431,1785.7,1785.4,1.118]
[1680472843490,4.04817431,1785.7,1785.4,1.118]
[1680472843987,0.84037431,1785.7,1785.4,1.118]
[1680472845287,1.95337431,1785.7,1785.3,1.0]
[1680472845483,1.95337431,1785.7,1785.2,5.3258]
[1680472845683,5.16117431,1785.7,1785.2,5.3258]
[1680472846085,5.16117431,1785.7,1785.2,5.87226278]
[1680472846586,5.16117431,1785.7,1785.3,1.0]
[1680472847585,1.95337431,1785.7,1785.3,1.0]
[1680472847888,1.95337431,1785.7,1785.4,3.2078]
[1680472848089,0.84037431,1785.7,1785.5,1.0]
[1680472848290,3.76467668,1786.2,1785.6,4.3188]
[1680472848494,4.3238,1786.5,1786.1,1.116]
[1680472848689,4.3238,1786.5,1785.8,1.12]
[1680472848690,1.112,1786.4,1785.9,1.116]
[1680472849594,1.12,1786.4,1785.9,2.12]
[1680472850394,0.58203642,1786.3,1785.9,1.12]
[1680472850598,4.2078,1786.5,1786.1,1.118]
[1680472850887,1.112,1786.4,1785.9,2.113]
[1680472851093,1.112,1786.4,1785.9,1.113]
[1680472852895,1.112,1786.4,1785.9,2.113]
[1680472853586,1.112,1786.4,1785.9,1.113]
[1680472854787,3.2078,1786.3,1785.9,1.113]
[1680472855194,4.3198,1786.4,1785.9,1.113]
[1680472858596,1.116,1786.3,1785.8,1.118]
[1680472858800,4.3238,1785.9,1785.7,0.002]
[1680472859000,1.112,1785.8,1785.2,3.75426278]
[1680472859190,1.12,1785.4,1785.2,3.2078]
[1680472859492,1.116,1785.6,1785.2,4.3188]
[1680472859692,1.12,1785.5,1785.2,3.2078]
[1680472861291,4.3278,1785.5,1785.0,4.3278]
[1680472862093,1.113,1785.4,1785.0,3.2078]
[1680472862496,1.113,1785.4,1784.9,1.113]
[1680472862799,3.2078,1785.3,1784.9,1.113]
[1680472863189,3.2078,1785.3,1784.9,2.113]
[1680472863395,3.2078,1785.7,1785.1,1.116]
[1680472863705,3.2078,1785.8,1785.2,1.0]
[1680472864001,1.12,1785.6,1785.2,1.0]
[1680472864390,1.12,1785.6,1785.2,4.2078]
[1680472864797,1.12,1785.6,1785.2,1.0]
[1680472865402,0.78433019,1785.5,1785.2,4.2078]
[1680472865604,0.78433019,1785.5,1785.4,2.113]
[1680472865989,3.2078,1785.8,1785.5,1.0]
[1680472866193,3.2078,1785.8,1785.6,1.0]
[1680472866901,1.12,1786.0,1785.6,1.0]
[1680472867103,4.3278,1786.0,1785.6,1.0]
[1680472872000,4.3278,1786.0,1785.5,2.12]
[1680472872196,4.3278,1786.0,1785.5,1.12]
[1680472872800,1.12,1785.8,1785.3,1.113]
[1680472873104,4.3278,1785.8,1785.3,2.113]
[1680472873305,4.3278,1785.8,1785.3,1.113]
[1680472874203,1.12,1785.8,1785.3,2.113]
[1680472875106,4.3278,1785.8,1785.3,2.113]
[1680472875809,4.88795652,1786.0,1785.5,1.116]
[1680472876005,4.3238,1786.0,1785.5,2.116]
[1680472876306,4.3238,1786.0,1785.5,1.116]
[1680472877307,3.2078,1785.8,1785.5,1.116]
[1680472878410,1.12,1785.8,1785.4,3.2078]
[1680472878911,4.3278,1785.8,1785.4,3.2078]
[1680472880404,0.77485753,1785.7,1785.4,3.2078]
[1680472881201,0.77485753,1785.7,1785.5,1.0]
[1680472882208,0.77485753,1785.7,1785.4,4.3278]
[1680472882413,4.3278,1785.9,1785.4,4.3278]
[1680472885113,1.12,1785.7,1785.4,3.2078]
[1680472886206,0.5770173,1785.8,1785.4,4.3278]
[1680472886519,1.113,1785.5,1785.2,0.87882334]
[1680472886706,2.113,1785.5,1785.1,0.87882334]
[1680472886909,4.3208,1785.5,1785.1,0.87882334]
[1680472887107,4.8978173,1785.5,1785.0,2.56472354]
[1680472887311,4.8978173,1785.5,1785.0,1.99882334]
[1680472887510,4.3208,1785.5,1785.0,1.99882334]
[1680472888212,4.3208,1785.5,1784.9,0.87882334]
[1680472888213,4.3278,1785.3,1784.9,0.87882334]
[1680472888810,4.3278,1785.3,1784.8,1.87882334]
[1680472888811,3.2078,1785.1,1784.8,1.87882334]
[1680472889012,3.2078,1785.1,1784.8,2.99182334]
[1680472889409,1.12,1785.0,1784.8,0.87882334]
[1680472889615,1.12,1785.0,1784.7,0.87882334]
[1680472890111,1.12,1785.0,1784.7,1.87882334]
[1680472890409,1.12,1785.0,1784.6,5.20662334]
[1680472890611,1.117,1784.8,1784.6,4.08662334]
[1680472890814,1.117,1784.8,1784.6,0.87882334]
[1680472891416,1.117,1784.8,1784.5,0.87882334]
[1680472891617,1.117,1784.8,1784.5,1.0]
[1680472892010,3.2078,1784.9,1784.5,2.12]
[1680472892011,4.3278,1784.9,1784.5,2.12]
[1680472892317,4.3278,1784.9,1784.5,1.12]
[1680472894822,4.3278,1784.9,1784.5,2.12]
[1680472895221,1.0528113,1784.8,1784.5,2.12]
[1680472895413,4.3278,1784.9,1784.5,1.12]
[1680472895814,4.3278,1784.9,1784.5,2.12]
[1680472896215,4.3278,1784.9,1784.5,1.12]
[1680472896725,4.3278,1784.9,1784.5,2.12]
[1680472897125,1.12,1784.8,1784.4,4.2078]
[1680472898424,1.12,1784.8,1784.4,3.2078]
[1680472898626,1.12,1784.8,1784.5,1.0]
[1680472900628,1.12,1784.9,1784.6,3.2078]
[1680472902015,1.117,1784.9,1784.6,3.2078]
[1680472902227,1.117,1784.9,1784.4,6.20662334]
[1680472902919,1.117,1784.9,1784.4,5.3278]
[1680472903822,4.3248,1784.9,1784.4,4.3278]
[1680472904926,4.3248,1784.9,1784.4,3.2078]
[1680472904927,1.12,1784.7,1784.4,3.2078]
[1680472906326,1.12,1784.5,1784.3,0.5653735]
[1680472906632,1.12,1784.5,1784.2,4.08662334]
[1680472906830,1.16932693,1784.4,1784.2,3.2078]